fUST/lending_fUST_20250719
["ID","MTS","AMOUNT","RATE_DAILY","PERIOD"]
[373200676,1752903065295,-1978.9,0.00020547,2]
[373200677,1752903065305,-460.0,0.00020547,2]
[373200678,1752903065315,-1505.02,0.00020547,2]
[373200679,1752903065325,-151.315414,0.00020547,2]
[373200680,1752903065335,-151.0,0.00020547,2]
[373200681,1752903065344,-280.543171,0.00020547,2]
[373200682,1752903065353,-460.0,0.00020547,2]
[373200683,1752903065363,-410.668745,0.00020547,2]
[373200684,1752903065372,-410.668745,0.00020547,2]
[373200685,1752903065381,-1442.04,0.00020547,2]
[373200686,1752903065390,-584.9,0.00020547,2]
[373200687,1752903065400,-633.79,0.00020547,2]
[373200688,1752903065410,-2208.01,0.00020547,2]
[373200689,1752903065420,-2144.38,0.00020547,2]
[373200690,1752903065430,-210.74098333,0.00020547,2]
[373200691,1752903065439,-782.71,0.00020547,2]
[373200692,1752903065451,-211.06105231,0.00020547,2]
[373200693,1752903065461,-1171.09,0.00020547,2]
[373200694,1752903065471,-1364.49,0.00020547,2]
[373200695,1752903065480,-460.0,0.00020547,2]
[373200696,1752903065490,-461.87,0.00020547,2]
[373200697,1752903065500,-583.74,0.00020547,2]
[373200698,1752903065511,-460.0,0.00020547,2]
[373200699,1752903065520,-460.0,0.00020547,2]
[373200700,1752903065530,-759.08,0.00020547,2]
[373200701,1752903065539,-1623.5,0.00020547,2]
[373200702,1752903065549,-460.0,0.00020547,2]
[373200703,1752903065558,-460.0,0.00020547,2]
[373200704,1752903065568,-491.03,0.00020547,2]
[373200705,1752903065577,-525.35,0.00020547,2]
[373200706,1752903065587,-473.37,0.00020547,2]
[373200707,1752903065597,-2274.07,0.00020547,2]
[373200708,1752903065607,-460.0,0.00020547,2]
[373200709,1752903065616,-1301.23,0.00020547,2]
[373200710,1752903065625,-3822.72,0.00020547,2]
[373200711,1752903065635,-460.0,0.00020547,2]
[373200712,1752903065644,-569.23,0.00020547,2]
[373200713,1752903065654,-460.0,0.00020547,2]
[373200714,1752903065664,-460.0,0.00020547,2]
[373200715,1752903065673,-1086.82,0.00020547,2]
[373200716,1752903065683,-906.52,0.00020547,2]
[373200717,1752903065692,-151.0,0.00020555,2]
[373200718,1752903065702,-151.0,0.00020555,2]
[373200719,1752903065711,-4890.36116353,0.00020555,3]
[373200720,1752903065720,-660.0,0.00020573,2]
[373200721,1752903065730,-500.0,0.000206,2]
[373200722,1752903065741,-202.10282225,0.0002062,2]
[373200723,1752903065751,-7356.9806417,0.0002064,2]
[373200724,1752903065762,-152.821105,0.0002064,2]
[373200725,1752903065771,-109596.88761214,0.00020739,2]
[373200726,1752903065782,-4890.36116353,0.00020797,4]
[373200727,1752903065792,-358.108017,0.00020811,2]
[373200728,1752903065802,-472.049229,0.00020821,2]
[373200729,1752903065812,-151.0,0.00020821,2]
[373200730,1752903065821,-151.0,0.00020821,2]
[373200731,1752903065831,-151.0,0.00020821,2]
[373200732,1752903065841,-151.492024,0.00020821,2]
[373200733,1752903065850,-460.0,0.00020821,2]
[373200734,1752903065860,-151.0,0.00020821,2]
[373200735,1752903065869,-151.0,0.00020821,2]
[373200736,1752903065878,-151.0,0.00020821,2]
[373200737,1752903065888,-151.0,0.00020821,2]
[373200738,1752903065898,-1074.17,0.00020821,2]
[373200739,1752903065907,-4435.91,0.00020821,2]
[373200740,1752903065917,-151.0,0.00020821,2]
[373200741,1752903065926,-151.0,0.00020821,2]
[373200742,1752903065935,-151.815318,0.00020821,2]
[373200743,1752903065944,-1978.9,0.00020821,2]
[373200744,1752903065953,-460.0,0.00020821,2]
[373200745,1752903065964,-1505.02,0.00020821,2]
[373200746,1752903065972,-201.17123815,0.00020821,2]
[373200747,1752903065982,-151.0,0.00020821,2]
[373200748,1752903065991,-1442.04,0.00020821,2]
[373200749,1752903066000,-584.9,0.00020821,2]
[373200750,1752903066010,-633.79,0.00020821,2]
[373200751,1752903066019,-2208.01,0.00020821,2]
[373200752,1752903066029,-2144.38,0.00020821,2]
[373200753,1752903066038,-782.71,0.00020821,2]
[373200754,1752903066048,-1171.09,0.00020821,2]
[373200755,1752903066057,-1364.49,0.00020821,2]
[373200756,1752903066066,-460.0,0.00020821,2]
[373200757,1752903066076,-461.87,0.00020821,2]
[373200758,1752903066086,-583.74,0.00020821,2]
[373200759,1752903066097,-460.0,0.00020821,2]
[373200760,1752903066107,-460.0,0.00020821,2]
[373200761,1752903066118,-759.08,0.00020821,2]
[373200762,1752903066127,-1623.5,0.00020821,2]
[373200763,1752903066137,-460.0,0.00020821,2]
[373200764,1752903066146,-460.0,0.00020821,2]
[373200765,1752903066156,-491.03,0.00020821,2]
[373200766,1752903066166,-525.35,0.00020821,2]
[373200767,1752903066176,-473.37,0.00020821,2]
[373200768,1752903066186,-2274.07,0.00020821,2]
[373200769,1752903066195,-460.0,0.00020821,2]
[373200770,1752903066204,-1301.23,0.00020821,2]
[373200771,1752903066214,-3822.72,0.00020821,2]
[373200772,1752903066223,-460.0,0.00020821,2]
[373200773,1752903066233,-569.23,0.00020821,2]
[373200774,1752903066243,-593.5857543,0.00020821,2]
[373200775,1752903066253,-460.0,0.00020821,2]
[373200776,1752903066262,-1086.82,0.00020821,2]
[373200777,1752903066272,-906.52,0.00020821,2]
[373200778,1752903066282,-517.294,0.00020829,2]
[373200779,1752903066291,-800.0,0.0002083,2]
[373200780,1752903066301,-151.0,0.00020832,2]
[373200781,1752903066311,-151.0,0.00020832,2]
[373200782,1752903066321,-200.399393,0.00020832,2]
[373200783,1752903066330,-200.399393,0.00020832,2]
[373200784,1752903066339,-151.0,0.00020832,2]
[373200785,1752903066350,-25000.0,0.00020832,2]
[373200786,1752903066359,-6635.69935498,0.0002089,2]
[373200787,1752903066369,-156.0,0.00020904,3]
[373200788,1752903066384,-7356.9806417,0.00020914,2]
[373200789,1752903066394,-224.2,0.0002096,2]
[373200790,1752903066404,-10957.49312634,0.00020995,2]
[373200791,1752903066414,-270.09424136,0.00021,2]
[373200792,1752903066425,-15866.4843694,0.00021,2]
[373200793,1752903066434,-3368.97706371,0.00021,4]
[373200794,1752903066444,-182.08849996,0.00021008,2]
[373200795,1752903066457,-4890.36116353,0.00021038,4]
[373200796,1752903066466,-328.0,0.00021059,2]
[373200797,1752903066476,-328.0,0.00021087,2]
[373200798,1752903066486,-4618.54056842,0.00021095,2]
[373200799,1752903066495,-151.0,0.00021095,2]
[373200800,1752903066505,-151.0,0.00021095,2]
[373200801,1752903066515,-151.847431,0.00021095,2]
[373200802,1752903066524,-151.0,0.00021095,2]
[373200803,1752903066534,-151.0,0.00021095,2]
[373200804,1752903066544,-151.0,0.00021095,2]
[373200805,1752903066554,-460.0,0.00021095,2]
[373200806,1752903066564,-200.919079,0.00021095,2]
[373200807,1752903066573,-200.919079,0.00021095,2]
[373200808,1752903066582,-151.0,0.00021095,2]
[373200809,1752903066592,-1074.17,0.00021095,2]
[373200810,1752903066601,-151.0,0.00021095,2]
[373200811,1752903066611,-151.0,0.00021095,2]
[373200812,1752903066620,-4435.91,0.00021095,2]
[373200813,1752903066630,-151.0,0.00021095,2]
[373200814,1752903066640,-1978.9,0.00021095,2]
[373200815,1752903066650,-460.0,0.00021095,2]
[373200816,1752903066661,-1505.02,0.00021095,2]
[373200817,1752903066671,-1442.04,0.00021095,2]
[373200818,1752903066680,-584.9,0.00021095,2]
[373200819,1752903066690,-633.79,0.00021095,2]
[373200820,1752903066700,-2208.01,0.00021095,2]
[373200821,1752903066709,-2144.38,0.00021095,2]
[373200822,1752903066719,-782.71,0.00021095,2]
[373200823,1752903066728,-1171.09,0.00021095,2]
[373200824,1752903066738,-1364.49,0.00021095,2]
[373200825,1752903066748,-460.0,0.00021095,2]
[373200826,1752903066757,-461.87,0.00021095,2]
[373200827,1752903066767,-583.74,0.00021095,2]
[373200828,1752903066777,-460.0,0.00021095,2]
[373200829,1752903066786,-460.0,0.00021095,2]
[373200830,1752903066796,-759.08,0.00021095,2]
[373200831,1752903066806,-1623.5,0.00021095,2]
[373200832,1752903066815,-460.0,0.00021095,2]
[373200833,1752903066825,-460.0,0.00021095,2]
[373200834,1752903066835,-491.03,0.00021095,2]
[373200835,1752903066844,-525.35,0.00021095,2]
[373200836,1752903066855,-473.37,0.00021095,2]
[373200837,1752903066864,-2274.07,0.00021095,2]
[373200838,1752903066874,-460.0,0.00021095,2]
[373200839,1752903066883,-1301.23,0.00021095,2]
[373200840,1752903066893,-3822.72,0.00021095,2]
[373200841,1752903066902,-460.0,0.00021095,2]
[373200842,1752903066911,-569.23,0.00021095,2]
[373200843,1752903066922,-460.0,0.00021095,2]
[373200844,1752903066932,-1086.82,0.00021095,2]
[373200845,1752903066942,-906.52,0.00021095,2]
[373200846,1752903066952,-215.0738,0.00021105,2]
[373200847,1752903066962,-760.0,0.00021121,2]
[373200848,1752903066971,-4890.36116353,0.00021279,5]
[373200849,1752903066980,-328.0,0.00021307,2]
[373200850,1752903066990,-7356.9806417,0.00021313,2]
[373200851,1752903067001,-752.0,0.00021328,2]
[373200852,1752903067010,-1201.486897,0.00021328,2]
[373200853,1752903067019,-1201.486897,0.00021328,2]
[373200854,1752903067029,-1077.76009219,0.00021367,2]
[373200855,1752903067039,-4306.7293284,0.00021367,2]
[373200856,1752903067048,-460.0,0.00021369,2]
[373200857,1752903067058,-1074.17,0.00021369,2]
[373200858,1752903067067,-4435.91,0.00021369,2]
[373200859,1752903067077,-1978.9,0.00021369,2]
[373200860,1752903067087,-460.0,0.00021369,2]
[373200861,1752903067098,-1505.02,0.00021369,2]
[373200862,1752903067108,-1442.04,0.00021369,2]
[373200863,1752903067117,-584.9,0.00021369,2]
[373200864,1752903067127,-633.79,0.00021369,2]
[373200865,1752903067136,-2208.01,0.00021369,2]
[373200866,1752903067145,-2144.38,0.00021369,2]
[373200867,1752903067256,-782.71,0.00021369,2]
[373200868,1752903067267,-1171.09,0.00021369,2]
[373200869,1752903067276,-1364.49,0.00021369,2]
[373200870,1752903067287,-460.0,0.00021369,2]
[373200871,1752903067297,-461.87,0.00021369,2]
[373200872,1752903067308,-583.74,0.00021369,2]
[373200873,1752903067318,-460.0,0.00021369,2]
[373200874,1752903067329,-460.0,0.00021369,2]
[373200875,1752903067340,-759.08,0.00021369,2]
[373200876,1752903067349,-151.0,0.00021369,2]
[373200877,1752903067359,-1623.5,0.00021369,2]
[373200878,1752903067369,-460.0,0.00021369,2]
[373200879,1752903067379,-460.0,0.00021369,2]
[373200880,1752903067388,-491.03,0.00021369,2]
[373200881,1752903067398,-525.35,0.00021369,2]
[373200882,1752903067408,-473.37,0.00021369,2]
[373200883,1752903067419,-2274.07,0.00021369,2]
[373200884,1752903067429,-460.0,0.00021369,2]
[373200885,1752903067439,-1301.23,0.00021369,2]
[373200886,1752903067449,-3822.72,0.00021369,2]
[373200887,1752903067458,-151.0,0.00021369,2]
[373200888,1752903067468,-460.0,0.00021369,2]
[373200889,1752903067478,-569.23,0.00021369,2]
[373200890,1752903067488,-460.0,0.00021369,2]
[373200891,1752903067498,-1086.82,0.00021369,2]
[373200892,1752903067510,-203.956326,0.00021369,2]
[373200893,1752903067520,-906.52,0.00021369,2]
[373200894,1752903067530,-203.956326,0.00021369,2]
[373200895,1752903067539,-428.975799,0.0002138,2]
[373200896,1752903067549,-428.975799,0.0002138,2]
[373200897,1752903067559,-151.0,0.0002138,2]
[373200898,1752903067569,-153.03289,0.0002138,2]
[373200899,1752903067578,-228.289233,0.0002138,2]
[373200900,1752903067588,-228.289233,0.0002138,2]
[373200901,1752903067598,-151.0,0.0002138,2]
[373200902,1752903067608,-151.0,0.0002138,2]
[373200903,1752903067617,-151.0,0.0002138,2]
[373200904,1752903067626,-309.301731,0.0002138,2]
[373200905,1752903067636,-309.301731,0.0002138,2]
[373200906,1752903067645,-253.751263,0.0002138,2]
[373200907,1752903067655,-253.751263,0.0002138,2]
[373200908,1752903067666,-151.0,0.0002138,2]
[373200909,1752903067675,-178.585793,0.0002138,2]
[373200910,1752903067685,-178.585793,0.0002138,2]
[373200911,1752903067695,-25000.0,0.0002138,2]
[373200912,1752903067704,-295.24819725,0.00021381,2]
[373200913,1752903067832,-533.92,0.00021381,2]
[373200914,1752903068419,-500.0,0.00016337,2]
[373200915,1752903068428,-500.0,0.00016337,2]
[373200916,1752903068438,-460.0,0.00016438,2]
[373200917,1752903068448,-460.0,0.00016438,2]
[373200918,1752903068461,-619.98,0.00016438,2]
[373200919,1752903068471,-460.0,0.00016438,2]
[373200920,1752903068480,-460.0,0.00016712,2]
[373200921,1752903068490,-460.0,0.00016712,2]
[373200922,1752903068499,-619.98,0.00016712,2]
[373200923,1752903068509,-460.0,0.00016712,2]
[373200924,1752903068518,-515.21,0.00016986,2]
[373200925,1752903068527,-13.76723966,0.00016986,2]
[373200926,1752903188865,21039.11486279,0.00016238,2]
[373200927,1752903188891,40000.0,0.00016238,2]
[373200928,1752903188916,13289.37175635,0.00016238,2]
[373200929,1752903366659,150.0,0.00014719,2]
[373200932,1752903684705,408.656114,0.00013699,2]
[373200936,1752903780772,24900.0,0.00015437,2]
[373200938,1752903872786,300.0,0.00026,120]
[373200940,1752904068117,281.5513421,0.00015437,2]
[373200955,1752904232520,-154.57574566,0.00016333,2]
[373200957,1752904232531,-154.57574562,0.00016334,2]
[373200959,1752904232541,-154.57574562,0.00016336,2]
[373200961,1752904232550,-64.17088781,0.00016337,2]
[373200965,1752904232578,-90.40485781,0.00016337,2]
[373200967,1752904232588,-154.57574562,0.00016338,2]
[373200969,1752904232599,-729.81560198,0.00016338,2]
[373200971,1752904232608,-1000.0,0.00016338,2]
[373200973,1752904232618,-160.0,0.00016433,2]
[373200975,1752904232627,-1200.0,0.00016436,2]
[373200977,1752904232637,-197.79740704,0.00016437,2]
[373200979,1752904232647,-200.0,0.00016437,2]
[373200981,1752904232657,-300.0,0.00016437,2]
[373200983,1752904232667,-300.0,0.00016437,2]
[373200984,1752904232677,-300.0,0.00016437,2]
[373200985,1752904232687,-523.33218854,0.00016438,2]
[373200986,1752904232696,-460.0,0.00016438,2]
[373200987,1752904232706,-460.0,0.00016438,2]
[373200988,1752904232716,-460.0,0.00016438,2]
[373200989,1752904232727,-460.0,0.00016438,2]
[373200990,1752904232738,-460.0,0.00016438,2]
[373200991,1752904232748,-460.0,0.00016438,2]
[373200992,1752904232758,-460.0,0.00016438,2]
[373200993,1752904232769,-460.0,0.00016438,2]
[373200994,1752904232779,-460.0,0.00016438,2]
[373200995,1752904232790,-460.0,0.00016438,2]
[373200996,1752904233003,-460.0,0.00016438,2]
[373200997,1752904233016,-669.96,0.00016438,2]
[373200998,1752904233026,-571.58182674,0.00016438,2]
[373200999,1752904233036,-460.0,0.00016438,2]
[373201000,1752904233048,-460.0,0.00016438,2]
[373201001,1752904233058,-462.46682886,0.00016438,2]
[373201002,1752904233068,-567.08503556,0.00016438,2]
[373201003,1752904233078,-460.0,0.00016438,2]
[373201004,1752904233088,-460.0,0.00016438,2]
[373201005,1752904233098,-44.13548461,0.00016438,2]
[373201006,1752904233111,-415.86451539,0.00016438,2]
[373201007,1752904233122,-460.0,0.00016438,2]
[373201008,1752904233131,-461.98037566,0.00016438,2]
[373201009,1752904233141,-460.0,0.00016438,2]
[373201010,1752904233151,-460.0,0.00016438,2]
[373201011,1752904233161,-460.0,0.00016438,2]
[373201012,1752904233171,-460.0,0.00016438,2]
[373201013,1752904233181,-460.0,0.00016438,2]
[373201014,1752904233190,-460.0,0.00016438,2]
[373201015,1752904233199,-152.94658048,0.00016438,2]
[373201016,1752904233226,-188.55985103,0.00016438,2]
[373201017,1752904233236,-307.24882115,0.00016438,2]
[373201018,1752904233246,-82.32376564,0.00016438,2]
[373201036,1752904238667,-205.88042467,0.00016438,2]
[373201037,1752904238677,-460.0,0.00016438,2]
[373201038,1752904238687,-460.0,0.00016438,2]
[373201039,1752904238697,-460.0,0.00016438,2]
[373201040,1752904238707,-460.0,0.00016438,2]
[373201041,1752904238721,-460.0,0.00016438,2]
[373201042,1752904238731,-460.0,0.00016438,2]
[373201043,1752904238741,-460.0,0.00016438,2]
[373201044,1752904238751,-460.0,0.00016438,2]
[373201045,1752904238761,-500.0,0.00016438,2]
[373201046,1752904238772,-460.0,0.00016438,2]
[373201047,1752904238784,-460.0,0.00016438,2]
[373201048,1752904238794,-597.59510669,0.00016438,2]
[373201049,1752904238804,-460.80803837,0.00016438,2]
[373201050,1752904238814,-460.0,0.00016438,2]
[373201051,1752904238824,-460.0,0.00016438,2]
[373201052,1752904238834,-460.0,0.00016438,2]
[373201053,1752904238844,-460.0,0.00016438,2]
[373201054,1752904238854,-460.0,0.00016438,2]
[373201055,1752904238864,-460.0,0.00016438,2]
[373201056,1752904238874,-460.0,0.00016438,2]
[373201057,1752904238884,-460.0,0.00016438,2]
[373201058,1752904238894,-460.0,0.00016438,2]
[373201059,1752904238903,-460.0,0.00016438,2]
[373201060,1752904238915,-460.0,0.00016438,2]
[373201061,1752904238925,-460.0,0.00016438,2]
[373201062,1752904238935,-460.0,0.00016438,2]
[373201063,1752904238945,-460.0,0.00016438,2]
[373201064,1752904238956,-460.0,0.00016438,2]
[373201065,1752904238969,-460.0,0.00016438,2]
[373201066,1752904238979,-460.0,0.00016438,2]
[373201067,1752904238988,-460.0,0.00016438,2]
[373201068,1752904238998,-460.0,0.00016438,2]
[373201069,1752904239007,-460.0,0.00016438,2]
[373201070,1752904239017,-460.0,0.00016438,2]
[373201071,1752904239026,-460.0,0.00016438,2]
[373201072,1752904239037,-460.99167815,0.00016438,2]
[373201073,1752904239050,-460.0,0.00016438,2]
[373201074,1752904239060,-460.0,0.00016438,2]
[373201075,1752904239071,-500.0,0.00016438,2]
[373201076,1752904239081,-500.0,0.00016438,2]
[373201077,1752904239091,-500.0,0.00016438,2]
[373201078,1752904239102,-500.0,0.00016438,2]
[373201079,1752904239111,-500.0,0.00016438,2]
[373201080,1752904239123,-500.0,0.00016438,2]
[373201081,1752904239133,-500.0,0.00016438,2]
[373201082,1752904239143,-500.0,0.00016438,2]
[373201083,1752904239152,-500.0,0.00016438,2]
[373201084,1752904239162,-500.0,0.00016438,2]
[373201085,1752904239174,-460.0,0.00016438,2]
[373201086,1752904239183,-217.39336996,0.00016438,2]
[373201087,1752904239193,-460.0,0.00016438,2]
[373201088,1752904239203,-460.0,0.00016438,2]
[373201089,1752904239214,-460.0,0.00016438,2]
[373201090,1752904239223,-460.0,0.00016438,2]
[373201091,1752904239233,-460.0,0.00016438,2]
[373201092,1752904239242,-460.0,0.00016438,2]
[373201093,1752904239252,-460.0,0.00016438,2]
[373201094,1752904239261,-460.0,0.00016438,2]
[373201095,1752904239270,-460.0,0.00016438,2]
[373201096,1752904239280,-1054.0,0.00016438,2]
[373201097,1752904239289,-460.0,0.00016438,2]
[373201098,1752904239298,-460.0,0.00016438,2]
[373201099,1752904239308,-461.99394899,0.00016438,2]
[373201100,1752904239317,-460.0,0.00016438,2]
[373201101,1752904239327,-460.0,0.00016438,2]
[373201102,1752904239336,-460.0,0.00016438,2]
[373201103,1752904239345,-460.0,0.00016438,2]
[373201104,1752904239355,-460.0,0.00016438,2]
[373201105,1752904239364,-460.0,0.00016438,2]
[373201106,1752904239373,-500.0,0.00016438,2]
[373201107,1752904239382,-500.0,0.00016438,2]
[373201108,1752904239392,-500.0,0.00016438,2]
[373201109,1752904239401,-460.0,0.00016438,2]
[373201110,1752904239410,-466.65095932,0.00016438,2]
[373201111,1752904239419,-460.0,0.00016438,2]
[373201112,1752904239428,-500.0,0.00016438,2]
[373201113,1752904239437,-500.0,0.00016438,2]
[373201114,1752904239447,-460.0,0.00016438,2]
[373201115,1752904239456,-500.0,0.00016438,2]
[373201116,1752904239469,-500.0,0.00016438,2]
[373201117,1752904239478,-500.0,0.00016438,2]
[373201118,1752904239487,-460.0,0.00016438,2]
[373201119,1752904239496,-460.0,0.00016438,2]
[373201120,1752904239506,-460.0,0.00016438,2]
[373201121,1752904239516,-460.0,0.00016438,2]
[373201122,1752904239525,-460.0,0.00016438,2]
[373201123,1752904239534,-460.0,0.00016438,2]
[373201124,1752904239544,-460.0,0.00016438,2]
[373201125,1752904239553,-460.0,0.00016438,2]
[373201126,1752904239563,-460.0,0.00016438,2]
[373201127,1752904239572,-460.0,0.00016438,2]
[373201128,1752904239582,-460.0,0.00016438,2]
[373201129,1752904239592,-460.0,0.00016438,2]
[373201130,1752904239601,-460.0,0.00016438,2]
[373201131,1752904239611,-287.14175686,0.00016438,2]
[373201132,1752904239620,-460.0,0.00016438,2]
[373201133,1752904239630,-460.0,0.00016438,2]
[373201134,1752904239639,-1082.33,0.00016438,2]
[373201135,1752904239649,-460.0,0.00016438,2]
[373201136,1752904239659,-460.0,0.00016438,2]
[373201137,1752904239668,-460.0,0.00016438,2]
[373201138,1752904239678,-176.14818219,0.00016438,2]
[373201139,1752904239687,-454.41081052,0.00016438,2]
[373201140,1752904239697,-460.0,0.00016438,2]
[373201141,1752904239706,-460.0,0.00016438,2]
[373201142,1752904239716,-460.0,0.00016438,2]
[373201143,1752904239725,-242.76336113,0.00016438,2]
[373201144,1752904239733,-460.0,0.00016438,2]
[373201145,1752904239741,-460.0,0.00016438,2]
[373201146,1752904239750,-460.0,0.00016438,2]
[373201147,1752904239758,-460.0,0.00016438,2]
[373201148,1752904239767,-460.0,0.00016438,2]
[373201149,1752904239776,-460.0,0.00016438,2]
[373201150,1752904239786,-266.55303573,0.00016438,2]
[373201151,1752904239795,-460.0,0.00016438,2]
[373201152,1752904239804,-460.0,0.00016438,2]
[373201153,1752904239814,-460.0,0.00016438,2]
[373201154,1752904239823,-460.0,0.00016438,2]
[373201155,1752904239833,-422.76226761,0.00016438,2]
[373201156,1752904239842,-460.0,0.00016438,2]
[373201157,1752904239852,-460.0,0.00016438,2]
[373201158,1752904239861,-460.0,0.00016438,2]
[373201159,1752904239871,-460.0,0.00016438,2]
[373201160,1752904239880,-460.0,0.00016438,2]
[373201161,1752904239890,-460.0,0.00016438,2]
[373201162,1752904239900,-460.0,0.00016438,2]
[373201163,1752904239909,-460.0,0.00016438,2]
[373201164,1752904239918,-460.0,0.00016438,2]
[373201165,1752904239927,-632.77,0.00016438,2]
[373201166,1752904239937,-460.0,0.00016438,2]
[373201167,1752904239946,-460.0,0.00016438,2]
[373201168,1752904239956,-1647.74,0.00016438,2]
[373201169,1752904239967,-460.0,0.00016438,2]
[373201170,1752904239976,-460.0,0.00016438,2]
[373201171,1752904239985,-460.0,0.00016438,2]
[373201172,1752904239996,-460.0,0.00016438,2]
[373201173,1752904240006,-460.0,0.00016438,2]
[373201174,1752904240017,-460.0,0.00016438,2]
[373201175,1752904240028,-460.0,0.00016438,2]
[373201176,1752904240039,-460.0,0.00016438,2]
[373201177,1752904240050,-460.0,0.00016438,2]
[373201178,1752904240062,-193.93596277,0.00016438,2]
[373201179,1752904240072,-460.0,0.00016438,2]
[373201180,1752904240081,-460.0,0.00016438,2]
[373201181,1752904240091,-460.0,0.00016438,2]
[373201182,1752904240100,-263.02249733,0.00016438,2]
[373201183,1752904240110,-460.0,0.00016438,2]
[373201184,1752904240120,-460.0,0.00016438,2]
[373201185,1752904240132,-460.0,0.00016438,2]
[373201186,1752904240141,-432.90758822,0.00016438,2]
[373201187,1752904240151,-471.27,0.00016438,2]
[373201188,1752904240160,-501.13340853,0.00016438,2]
[373201189,1752904240170,-460.0,0.00016438,2]
[373201190,1752904240181,-460.0,0.00016438,2]
[373201191,1752904240190,-460.0,0.00016438,2]
[373201192,1752904240199,-460.0,0.00016438,2]
[373201193,1752904240209,-460.0,0.00016438,2]
[373201194,1752904240220,-460.0,0.00016438,2]
[373201195,1752904240230,-461.00911763,0.00016438,2]
[373201196,1752904240239,-460.0,0.00016438,2]
[373201197,1752904240248,-460.0,0.00016438,2]
[373201198,1752904240258,-460.0,0.00016438,2]
[373201199,1752904240268,-1036.4,0.00016438,2]
[373201200,1752904240278,-460.0,0.00016438,2]
[373201201,1752904240288,-460.0,0.00016438,2]
[373201202,1752904240298,-460.0,0.00016438,2]
[373201203,1752904240308,-511.91,0.00016438,2]
[373201204,1752904240318,-460.0,0.00016438,2]
[373201205,1752904240328,-460.0,0.00016438,2]
[373201206,1752904240338,-465.03969111,0.00016438,2]
[373201207,1752904240349,-460.0,0.00016438,2]
[373201208,1752904240360,-357.11942105,0.00016438,2]
[373201209,1752904240371,-460.0,0.00016438,2]
[373201210,1752904240382,-601.4,0.00016438,2]
[373201211,1752904240391,-460.0,0.00016438,2]
[373201212,1752904240400,-460.0,0.00016438,2]
[373201213,1752904240409,-460.0,0.00016438,2]
[373201214,1752904240419,-460.0,0.00016438,2]
[373201215,1752904240428,-460.0,0.00016438,2]
[373201216,1752904240438,-460.0,0.00016438,2]
[373201217,1752904240447,-460.0,0.00016438,2]
[373201218,1752904240457,-460.0,0.00016438,2]
[373201219,1752904240467,-460.0,0.00016438,2]
[373201220,1752904240476,-297.8307181,0.00016438,2]
[373201223,1752904240619,-460.0,0.00016438,2]
[373201224,1752904240629,-460.0,0.00016438,2]
[373201225,1752904240639,-460.0,0.00016438,2]
[373201226,1752904240649,-1787.24,0.00016438,2]
[373201227,1752904240659,-460.0,0.00016438,2]
[373201228,1752904240669,-460.0,0.00016438,2]
[373201229,1752904240678,-460.0,0.00016438,2]
[373201230,1752904240688,-867.49,0.00016438,2]